fUSD/lending_fUSD_20260519
["ID","MTS","AMOUNT","RATE_DAILY","PERIOD"]
[422643318,1779203432000,-539.56685334,0.00013522,2]
[422643320,1779203432000,-500.0,0.00013522,2]
[422643319,1779203432000,-500.0,0.00013522,2]
[422643335,1779203432000,-256.84251132,0.00013699,2]
[422643317,1779203432000,-500.0,0.00013522,2]
[422643323,1779203432000,-500.0,0.00013522,2]
[422643324,1779203432000,-606.47018097,0.00013522,2]
[422643322,1779203432000,-156.0,0.00013522,2]
[422643330,1779203432000,-2500.0,0.00013697,2]
[422643328,1779203432000,-80870.78,0.00013608,2]
[422643325,1779203432000,-150.0,0.00013522,2]
[422643326,1779203432000,-150.0,0.00013522,2]
[422643329,1779203432000,-4848.0,0.00013697,2]
[422643331,1779203432000,-500.0,0.00013697,2]
[422643332,1779203432000,-2800.67116903,0.00013697,2]
[422643333,1779203432000,-4869.42384456,0.00013697,2]
[422643321,1779203432000,-498.6952398,0.00013522,2]
[422643358,1779203432000,-500.0,0.00013796,2]
[422643383,1779203432000,-176.71489617,0.00013796,2]
[422643360,1779203432000,-500.0,0.00013796,2]
[422643394,1779203432000,-500.0,0.00013796,2]
[422643399,1779203432000,-500.0,0.00013796,2]
[422643397,1779203432000,-500.0,0.00013796,2]
[422643400,1779203432000,-500.0,0.00013796,2]
[422643395,1779203432000,-500.0,0.00013796,2]
[422643398,1779203432000,-650.0,0.00013796,2]
[422643396,1779203432000,-500.0,0.00013796,2]
[422643401,1779203432000,-500.0,0.00013796,2]
[422643403,1779203432000,-500.0,0.00013796,2]
[422643402,1779203432000,-500.0,0.00013796,2]
[422643404,1779203432000,-500.0,0.00013796,2]
[422643393,1779203432000,-500.0,0.00013796,2]
[422643409,1779203432000,-500.0,0.00013796,2]
[422643406,1779203432000,-500.0,0.00013796,2]
[422643407,1779203432000,-500.0,0.00013796,2]
[422643410,1779203432000,-500.0,0.00013796,2]
[422643411,1779203432000,-500.0,0.00013796,2]
[422643412,1779203432000,-500.0,0.00013796,2]
[422643413,1779203432000,-216.40700069,0.00013796,2]
[422643414,1779203432000,-500.0,0.00013796,2]
[422643418,1779203432000,-1682.30867738,0.00013797,2]
[422643416,1779203432000,-40373.36822277,0.00013797,2]
[422643415,1779203432000,-500.0,0.00013796,2]
[422643417,1779203432000,-775.75637362,0.00013797,2]
[422643405,1779203432000,-500.0,0.00013796,2]
[422643392,1779203432000,-500.0,0.00013796,2]
[422643408,1779203432000,-468.35250932,0.00013796,2]
[422643391,1779203432000,-500.0,0.00013796,2]
[422643390,1779203432000,-500.0,0.00013796,2]
[422643362,1779203432000,-500.0,0.00013796,2]
[422643366,1779203432000,-500.0,0.00013796,2]
[422643376,1779203432000,-500.0,0.00013796,2]
[422643375,1779203432000,-500.0,0.00013796,2]
[422643373,1779203432000,-500.0,0.00013796,2]
[422643370,1779203432000,-500.0,0.00013796,2]
[422643367,1779203432000,-500.0,0.00013796,2]
[422643368,1779203432000,-500.0,0.00013796,2]
[422643372,1779203432000,-500.0,0.00013796,2]
[422643371,1779203432000,-500.0,0.00013796,2]
[422643374,1779203432000,-500.0,0.00013796,2]
[422643361,1779203432000,-500.0,0.00013796,2]
[422643388,1779203432000,-500.0,0.00013796,2]
[422643387,1779203432000,-500.0,0.00013796,2]
[422643377,1779203432000,-500.0,0.00013796,2]
[422643386,1779203432000,-500.0,0.00013796,2]
[422643385,1779203432000,-500.0,0.00013796,2]
[422643389,1779203432000,-500.0,0.00013796,2]
[422643380,1779203432000,-500.0,0.00013796,2]
[422643381,1779203432000,-500.0,0.00013796,2]
[422643382,1779203432000,-342.18391483,0.00013796,2]
[422643378,1779203432000,-500.0,0.00013796,2]
[422643379,1779203432000,-500.0,0.00013796,2]
[422643369,1779203432000,-500.0,0.00013796,2]
[422643384,1779203432000,-500.0,0.00013796,2]
[422643419,1779203438000,-429.35064503,0.00013797,2]
[422643420,1779203438000,-3575.51044018,0.00013797,2]
[422643462,1779203440000,-2016.14861573,0.0001363,2]
[422643464,1779203440000,-659.21023673,0.0001363,2]
[422643466,1779203440000,-403.09340783,0.0001363,2]
[422643463,1779203440000,-293.10407428,0.0001363,2]
[422643465,1779203440000,-1108.2662169,0.0001363,2]
[422643473,1779203442000,-727.0,0.0001363,2]
[422643474,1779203443000,-605.00771605,0.0001363,2]
[422643475,1779203443000,-662.37194539,0.0001363,2]
[422643476,1779203443000,-941.94160441,0.0001363,2]
[422643478,1779203443000,-3121.60053612,0.0001363,2]
[422643479,1779203443000,-2482.19339121,0.0001363,2]
[422643480,1779203443000,-2978.06116139,0.0001363,2]
[422643481,1779203443000,-459.26744823,0.0001363,2]
[422643477,1779203443000,-282.55640174,0.0001363,2]
[422643483,1779203445000,-6384.84551741,0.00013797,2]
[422643482,1779203445000,-15866.65448259,0.0001363,2]
[422643484,1779203445000,-7919.62731396,0.00013797,2]
[422643486,1779203446000,-322.00308645,0.00013797,2]
[422643487,1779203446000,-22082.90032431,0.00013797,2]
[422643485,1779203446000,-2267.20397564,0.00013797,2]
[422643887,1779203579000,168.24,6.95e-05,2]
[422643888,1779203580000,168.24,9.175e-05,2]
[422643892,1779203725000,10000.0,0.00030137,120]
[422643893,1779203732000,10000.0,0.00030137,120]
[422643894,1779203738000,10000.0,0.00030137,120]
[422643895,1779203744000,10000.0,0.00030137,120]
[422643896,1779203751000,10000.0,0.00030137,120]
[422643897,1779203756000,10000.0,0.00030137,120]
[422643898,1779203762000,10000.0,0.00030137,120]
[422643899,1779203778000,6470.0,0.00030137,120]
[422643900,1779204050000,152.0,0.00016467,30]
[422644056,1779204402000,-159.89494499,0.00011401,2]
[422644106,1779204512000,500.0,0.00030076,120]
[422644107,1779204513000,930.0,0.00030076,120]
[422644108,1779204540000,1000.0,0.00030136,120]
[422644109,1779204549000,4973.38430232,8e-05,2]
[422644110,1779204549000,95026.61569768,8e-05,2]
[422644111,1779204604000,1060.86477171,0.00011999,3]
[422644112,1779204604000,1060.86477171,0.00011999,3]
[422644114,1779204624000,152.0,0.00016468,30]
[422644115,1779204626000,150.0,0.00011401,7]
[422644116,1779204627000,364.70743708,0.00011922,21]
[422644134,1779204631000,-102.0764959,0.00011989,2]
[422644132,1779204631000,-220.15072394,0.00011967,2]
[422644126,1779204631000,-220.15072398,0.000119,2]
[422644133,1779204631000,-708.90220904,0.00011979,2]
[422644127,1779204631000,-502.58729484,0.000119,2]
[422644130,1779204631000,-708.90220904,0.0001194,2]
[422644125,1779204631000,-8.34505501,0.00011401,2]
[422644128,1779204631000,-206.3149142,0.000119,2]
[422644129,1779204631000,-220.15072394,0.00011922,2]
[422644131,1779204631000,-220.15072394,0.00011944,2]
[422644142,1779204632000,-835.64918686,0.0001199,2]
[422644150,1779204632000,-300.0,0.00011999,2]
[422644149,1779204632000,-151.0,0.00011997,2]
[422644155,1779204632000,-1200.0,0.00011999,2]
[422644146,1779204632000,-835.64918686,0.0001199,2]
[422644154,1779204632000,-384.0,0.00011999,2]
[422644144,1779204632000,-835.64918686,0.0001199,2]
[422644140,1779204632000,-118.07422804,0.00011989,2]
[422644157,1779204632000,-300.0,0.00011999,2]
[422644152,1779204632000,-692.46000937,0.00011999,2]
[422644161,1779204632000,-4000.0,0.00012,2]
[422644164,1779204632000,-20514.53466592,0.00012,2]
[422644166,1779204632000,-1254.41808677,0.00012,2]
[422644163,1779204632000,-52790.36208874,0.00012,2]
[422644167,1779204632000,-448.71589931,0.00012,2]
[422644162,1779204632000,-100000.0,0.00012,2]
[422644165,1779204632000,-292659.44928734,0.00012,2]
[422644168,1779204632000,-675.352,0.00012,2]
[422644169,1779204632000,-299.70681413,0.00012,2]
[422644159,1779204632000,-150.0,0.00011999,2]
[422644177,1779204637000,-795.94855496,0.00012,2]
[422644199,1779204638000,-175.42,0.00012794,2]
[422644205,1779204638000,-1253.0,0.00013508,2]
[422644203,1779204638000,-500.0,0.00013233,2]
[422644201,1779204638000,-300.0,0.00013172,2]
[422644202,1779204638000,-1680.0,0.00013199,2]
[422644204,1779204638000,-806.47,0.00013497,2]
[422644200,1779204638000,-349.5,0.00012844,2]
[422644212,1779204638000,-14661.02,0.00013596,2]
[422644219,1779204638000,-500.0,0.00013597,2]
[422644214,1779204638000,-772.0289,0.00013597,2]
[422644223,1779204638000,-2597.00154853,0.00013597,2]
[422644230,1779204638000,-1296.6533258,0.00013655,2]
[422644209,1779204638000,-152.0,0.00013523,2]
[422644215,1779204638000,-5000.0,0.00013597,2]
[422644226,1779204638000,-168.24,0.00013627,2]
[422644228,1779204638000,-358.1264148,0.00013655,2]
[422644217,1779204638000,-2500.0,0.00013597,2]
[422644207,1779204638000,-4000.0,0.00013523,2]
[422644197,1779204638000,-55745.72,0.0001273,2]
[422644195,1779204638000,-507.63,0.00012708,2]
[422644193,1779204638000,-172.89744035,0.00012673,2]
[422644178,1779204638000,-21087.05999337,0.00012,2]
[422644179,1779204638000,-9609474.45260946,0.00012,2]
[422644182,1779204638000,-220.15072394,0.00012033,2]
[422644180,1779204638000,-10000000.0,0.00012,2]
[422644181,1779204638000,-220.15072394,0.00012011,2]
[422644183,1779204638000,-398.1131292,0.00012079,2]
[422644184,1779204638000,-176.38,0.00012133,2]
[422644185,1779204638000,-172.89744035,0.00012179,2]
[422644186,1779204638000,-165.38,0.00012187,2]
[422644188,1779204638000,-150.0,0.00012325,2]
[422644187,1779204638000,-375.19,0.00012279,2]
[422644196,1779204638000,-300.0,0.00012729,2]
[422644189,1779204638000,-172.89744035,0.00012426,2]
[422644190,1779204638000,-150.0,0.00012429,2]
[422644194,1779204638000,-673.04,0.00012689,2]
[422644192,1779204638000,-200.0,0.0001258,2]
[422644191,1779204638000,-2965.14,0.00012471,2]
[422644198,1779204638000,-1898.16,0.00012773,2]
[422644221,1779204638000,-2450.58727291,0.00013597,2]
[422644225,1779204638000,-4418.6709867,0.00013597,2]
[422644234,1779204638000,-403.47191547,0.00013696,2]
[422644263,1779204638000,-500.0,0.00013696,2]
[422644278,1779204638000,-500.0,0.00013696,2]
[422644281,1779204638000,-500.0,0.00013696,2]
[422644271,1779204638000,-500.0,0.00013696,2]
[422644268,1779204638000,-500.0,0.00013696,2]
[422644266,1779204638000,-500.0,0.00013696,2]
[422644283,1779204638000,-500.0,0.00013696,2]
[422644295,1779204638000,-294.18367761,0.00013696,2]
[422644294,1779204638000,-500.0,0.00013696,2]
[422644297,1779204638000,-488858.47642801,0.00013697,2]
[422644288,1779204638000,-500.0,0.00013696,2]
[422644292,1779204638000,-500.0,0.00013696,2]
[422644286,1779204638000,-500.0,0.00013696,2]
[422644285,1779204638000,-500.0,0.00013696,2]
[422644290,1779204638000,-500.0,0.00013696,2]
[422644301,1779204638000,-182.49,0.000126,2]
[422644303,1779204638000,-121.51,0.00013697,2]
[422644276,1779204638000,-500.0,0.00013696,2]
[422644274,1779204638000,-500.0,0.00013696,2]
[422644269,1779204638000,-500.0,0.00013696,2]
[422644264,1779204638000,-500.0,0.00013696,2]
[422644236,1779204638000,-500.0,0.00013696,2]
[422644279,1779204638000,-500.0,0.00013696,2]
[422644250,1779204638000,-365.74246237,0.00013696,2]
[422644251,1779204638000,-500.0,0.00013696,2]
[422644240,1779204638000,-500.0,0.00013696,2]
[422644253,1779204638000,-500.0,0.00013696,2]
[422644255,1779204638000,-500.0,0.00013696,2]
[422644242,1779204638000,-500.0,0.00013696,2]
[422644257,1779204638000,-500.0,0.00013696,2]
[422644238,1779204638000,-500.0,0.00013696,2]
[422644259,1779204638000,-500.0,0.00013696,2]
[422644258,1779204638000,-500.0,0.00013696,2]
[422644261,1779204638000,-500.0,0.00013696,2]
[422644273,1779204638000,-500.0,0.00013696,2]
[422644260,1779204638000,-500.0,0.00013696,2]
[422644232,1779204638000,-500.0,0.00013696,2]
[422644246,1779204638000,-500.0,0.00013696,2]
[422644248,1779204638000,-500.0,0.00013696,2]
[422644244,1779204638000,-500.0,0.00013696,2]
[422644464,1779204640000,-2161.0222183,0.00013697,2]
[422644455,1779204640000,-3385.48952984,0.00013697,2]
[422644457,1779204640000,-650.4944148,0.00013697,2]
[422644826,1779204643000,-2434.56880651,0.00013697,2]
[422645186,1779204645000,-478.9037882,0.00013697,2]
[422645242,1779204646000,-1558.470364,0.00013697,2]
[422645195,1779204646000,-11045.00000005,0.00013697,2]
[422646077,1779204653000,50000.0,0.00012,30]
[422646072,1779204653000,50000.0,0.00012,30]
[422646082,1779204653000,50000.0,0.00012,30]
[422646061,1779204653000,95242.78449955,0.00012,30]
[422646066,1779204653000,47577.69794827,0.00012,30]
[422646057,1779204653000,944770.87576989,0.00012,30]
[422646053,1779204653000,2980946.26289881,0.00012,30]
[422647375,1779204960000,236.64,0.00030082,120]
[422647377,1779205045000,167.18,5.742e-05,2]
[422647378,1779205045000,167.18,6.845e-05,2]
[422647380,1779205046000,167.18,9.051e-05,2]
[422647379,1779205046000,167.18,7.948e-05,2]
[422647386,1779205361000,500.0,0.00029452,120]
[422647387,1779205600000,-159.03859834,0.00010155,2]
[422647388,1779205607000,10000.0,0.00030137,120]
[422647389,1779205613000,10000.0,0.00030137,120]
[422647390,1779205618000,10000.0,0.00030137,120]
[422647391,1779205619000,152.0,0.00011403,7]
[422647392,1779205620000,152.0,0.00011403,7]
[422647393,1779205627000,10000.0,0.00030137,120]
[422647394,1779205747000,1000.0,0.00030136,120]
[422647395,1779205756000,-8.14140166,0.00010155,2]
[422647396,1779205756000,-2000.0,0.00010157,2]
[422647397,1779205757000,-166.29,0.00010219,2]
[422647400,1779205757000,-5781.57,0.00010238,2]
[422647399,1779205757000,-2418.66154549,0.00010219,2]
[422647398,1779205757000,-200.0,0.00010219,2]
[422647401,1779205757000,-300.0,0.00010238,2]
[422647402,1779205757000,-2115.5,0.00010239,2]
[422647408,1779205757000,-500.0,0.00010348,2]
[422647404,1779205757000,-300.0,0.00010347,2]
[422647406,1779205757000,-1033.51667137,0.00010347,2]
[422647405,1779205757000,-150.0,0.00010347,2]
[422647407,1779205757000,-659.34063978,0.00010348,2]
[422647403,1779205757000,-300.0,0.00010347,2]
[422647409,1779205757000,-16.9797417,0.00010348,2]
[422647411,1779205774000,152.0,0.000114,7]
[422647412,1779205775000,152.0,0.00011403,7]
[422647418,1779205832000,-303.98,0.00010302,2]
[422647440,1779205832000,-150.0,0.00010959,2]
[422647439,1779205832000,-218.7060819,0.00010939,2]
[422647434,1779205832000,-4000.0,0.00010714,2]
[422647438,1779205832000,-224.9,0.00010867,2]
[422647437,1779205832000,-500.0,0.0001086,2]
[422647441,1779205832000,-150.0,0.00010959,2]
[422647436,1779205832000,-1518.99,0.00010843,2]
[422647435,1779205832000,-456.9,0.00010753,2]
[422647430,1779205832000,-328.59,0.00010573,2]
[422647432,1779205832000,-2204.2,0.00010623,2]
[422647433,1779205832000,-1000.0,0.00010671,2]
[422647416,1779205832000,-244.21308003,0.00010248,2]
[422647429,1779205832000,-8580.86,0.00010573,2]
[422647426,1779205832000,-9238.26,0.00010369,2]
[422647427,1779205832000,-152.0,0.00010451,2]
[422647425,1779205832000,-1012.12,0.00010369,2]
[422647424,1779205832000,-507.63,0.00010369,2]
[422647423,1779205832000,-418499.93,0.00010349,2]
[422647442,1779205832000,-4000.0,0.00010975,2]
[422647422,1779205832000,-300.0,0.00010348,2]
[422647421,1779205832000,-1200.0,0.00010348,2]
[422647420,1779205832000,-300.0,0.00010348,2]
[422647419,1779205832000,-1200.0,0.00010347,2]
[422647417,1779205832000,-244.21308002,0.00010259,2]
[422647428,1779205832000,-4000.0,0.00010452,2]
[422647446,1779205832000,-6110.37868886,0.00011099,2]
[422647469,1779205832000,-1680.0,0.00011383,2]
[422647445,1779205832000,-69952.5751347,0.00011099,2]
[422647444,1779205832000,-4001.77,0.00011064,2]
[422647480,1779205832000,-17800.0,0.00011891,2]
[422647479,1779205832000,-1104.50000001,0.00011891,2]
[422647476,1779205832000,-1000.0,0.0001189,2]
[422647477,1779205832000,-500.0,0.0001189,2]
[422647471,1779205832000,-2000.0,0.00011426,2]
[422647467,1779205832000,-420.0,0.00011379,2]
[422647475,1779205832000,-69952.57513469,0.00011813,2]
[422647473,1779205832000,-166.66,0.00011464,2]
[422647465,1779205832000,-420.0,0.00011379,2]
[422647474,1779205832000,-4000.0,0.00011498,2]
[422647463,1779205832000,-480.0,0.00011378,2]
[422647478,1779205832000,-4948.58742968,0.00011891,2]
[422647460,1779205832000,-300.0,0.00011378,2]
[422647457,1779205832000,-14664.32986668,0.00011298,2]
[422647447,1779205832000,-63842.19644583,0.00011099,2]
[422647453,1779205832000,-166.29,0.00011241,2]
[422647449,1779205832000,-10181.53815836,0.00011161,2]
[422647448,1779205832000,-1008.37916785,0.00011159,2]
[422647450,1779205832000,-4177.78184164,0.00011161,2]
[422647454,1779205832000,-167.18,0.00011258,2]
[422647452,1779205832000,-4000.0,0.00011236,2]
[422647455,1779205832000,-55288.24526801,0.00011298,2]
[422647458,1779205832000,-255.0,0.00011361,2]
[422647451,1779205832000,-250.0,0.0001117,2]
[422647443,1779205832000,-702.47,0.00010981,2]
[422647511,1779205838000,-208.58623393,0.00012067,2]
[422647524,1779205838000,-587.0,0.00012513,2]
[422647512,1779205838000,-456.9,0.00012097,2]
[422647510,1779205838000,-214.0,0.00012008,2]
[422647514,1779205838000,-6553.30950693,0.00012171,2]
[422647515,1779205838000,-166.29,0.00012263,2]
[422647516,1779205838000,-69952.57513469,0.00012327,2]
[422647513,1779205838000,-500.0,0.00012164,2]
[422647518,1779205838000,-1021.02411945,0.0001235,2]
[422647522,1779205838000,-180.0,0.00012513,2]
[422647517,1779205838000,-236.64,0.00012329,2]
[422647519,1779205838000,-166.66,0.0001241,2]
[422647520,1779205838000,-500.0,0.00012438,2]
[422647521,1779205838000,-433.0,0.00012479,2]
[422647527,1779205838000,-500.0,0.00012712,2]
[422647528,1779205838000,-69952.57513469,0.00012842,2]
[422647526,1779205838000,-2000.0,0.00012696,2]
[422647529,1779205838000,-1499.481214,0.00012919,2]
[422647509,1779205838000,-35535.3905211,0.00012008,2]
[422647525,1779205838000,-2351.0,0.00012522,2]
[422647508,1779205838000,-2224.7173499,0.00012008,2]
[422647531,1779205838000,-1506.177299,0.00012983,2]
[422647507,1779205838000,-10989.1687793,0.00012008,2]
[422647486,1779205838000,-244.21308002,0.00010269,2]
[422647487,1779205838000,-11676.90010735,0.00011891,2]
[422647488,1779205838000,-2259.5031,0.000119,2]
[422647489,1779205838000,-1589.97186244,0.00011908,2]
[422647493,1779205838000,-198.17886265,0.0001194,2]
[422647492,1779205838000,-797.67971276,0.00011908,2]
[422647490,1779205838000,-3893.28791996,0.00011908,2]
[422647494,1779205838000,-284.64084361,0.0001194,2]
[422647496,1779205838000,-769.91999738,0.0001199,2]
[422647495,1779205838000,-6049.0,0.00011973,2]
[422647499,1779205838000,-1000.0,0.00011999,2]
[422647497,1779205838000,-151.0,0.00011997,2]
[422647498,1779205838000,-299.57177799,0.00011998,2]
[422647500,1779205838000,-1310.26867815,0.00011999,3]
[422647502,1779205838000,-24225.39565336,0.00012,30]
[422647501,1779205838000,-771558.65907576,0.00012,30]
[422647503,1779205838000,-1010.67288684,0.00012,30]
[422647505,1779205838000,-152.0,0.00012003,30]
[422647504,1779205838000,-984667.65126752,0.00012,30]
[422647506,1779205838000,-519612.4690399,0.00012008,2]
[422647533,1779205838000,-500.0,0.00013248,2]
[422647491,1779205838000,-244.30943303,0.00011908,2]
[422647535,1779205838000,-500.0,0.00013248,2]
[422647573,1779205838000,-275.90692005,0.00013248,2]
[422647572,1779205838000,-534.53045177,0.00013248,2]
[422647575,1779205838000,-500.0,0.00013248,2]
[422647574,1779205838000,-500.0,0.00013248,2]
[422647578,1779205838000,-150.0,0.00013248,2]
[422647576,1779205838000,-573.96247089,0.00013248,2]
[422647579,1779205838000,-500.0,0.00013248,2]
[422647577,1779205838000,-150.0,0.00013248,2]
[422647582,1779205838000,-500.0,0.00013248,2]
[422647571,1779205838000,-500.0,0.00013248,2]
[422647580,1779205838000,-200.0,0.00013248,2]
[422647581,1779205838000,-500.0,0.00013248,2]
[422647583,1779205838000,-150.0,0.00013248,2]
[422647586,1779205838000,-500.0,0.00013248,2]
[422647587,1779205838000,-500.0,0.00013248,2]
[422647589,1779205838000,-181.11697857,0.00013248,2]
[422647588,1779205838000,-500.0,0.00013248,2]
[422647590,1779205838000,-351.0706614,0.00013248,2]
[422647591,1779205838000,-500.0,0.00013248,2]
[422647532,1779205838000,-500.0,0.00012986,2]
[422647585,1779205838000,-500.0,0.00013248,2]
[422647568,1779205838000,-500.0,0.00013248,2]
[422647584,1779205838000,-500.0,0.00013248,2]
[422647569,1779205838000,-500.0,0.00013248,2]
[422647570,1779205838000,-500.0,0.00013248,2]
[422647530,1779205838000,-1132.595922,0.00012919,2]
[422647534,1779205838000,-500.0,0.00013248,2]
[422647536,1779205838000,-500.0,0.00013248,2]
[422647538,1779205838000,-500.0,0.00013248,2]
[422647541,1779205838000,-515.72234033,0.00013248,2]
[422647543,1779205838000,-506.44330256,0.00013248,2]
[422647545,1779205838000,-150.0,0.00013248,2]
[422647546,1779205838000,-150.0,0.00013248,2]
[422647547,1779205838000,-150.0,0.00013248,2]
[422647539,1779205838000,-500.0,0.00013248,2]
[422647556,1779205838000,-535.59562921,0.00013248,2]
[422647560,1779205838000,-283.79059806,0.00013248,2]
[422647552,1779205838000,-500.0,0.00013248,2]
[422647554,1779205838000,-296.94706668,0.00013248,2]
[422647550,1779205838000,-150.0,0.00013248,2]
[422647561,1779205838000,-500.0,0.00013248,2]
[422647563,1779205838000,-500.0,0.00013248,2]
[422647565,1779205838000,-500.0,0.00013248,2]
[422647558,1779205838000,-500.0,0.00013248,2]
[422647567,1779205838000,-500.0,0.00013248,2]
[422647635,1779205839000,-500.0,0.00013698,2]
[422647630,1779205839000,-500.0,0.00013698,2]
[422647631,1779205839000,-500.0,0.00013698,2]
[422647633,1779205839000,-500.0,0.00013698,2]
[422647634,1779205839000,-500.0,0.00013698,2]
[422647632,1779205839000,-504.85547194,0.00013698,2]
[422647627,1779205839000,-500.0,0.00013698,2]
[422647628,1779205839000,-500.0,0.00013698,2]
[422647625,1779205839000,-500.0,0.00013698,2]
[422647624,1779205839000,-500.0,0.00013698,2]
[422647636,1779205839000,-500.0,0.00013698,2]
[422647626,1779205839000,-502.26457944,0.00013698,2]
[422647629,1779205839000,-500.0,0.00013698,2]
[422647638,1779205839000,-500.0,0.00013698,2]
[422647649,1779205839000,-500.0,0.00013698,2]
[422647639,1779205839000,-500.0,0.00013698,2]
[422647641,1779205839000,-500.0,0.00013698,2]
[422647640,1779205839000,-500.0,0.00013698,2]
[422647642,1779205839000,-500.0,0.00013698,2]
[422647643,1779205839000,-500.0,0.00013698,2]
[422647645,1779205839000,-500.0,0.00013698,2]
[422647646,1779205839000,-500.0,0.00013698,2]
[422647647,1779205839000,-500.0,0.00013698,2]
[422647648,1779205839000,-500.0,0.00013698,2]
[422647651,1779205839000,-500.0,0.00013698,2]
[422647650,1779205839000,-500.0,0.00013698,2]
[422647652,1779205839000,-500.0,0.00013698,2]
[422647622,1779205839000,-500.0,0.00013698,2]
[422647637,1779205839000,-500.0,0.00013698,2]
[422647623,1779205839000,-500.0,0.00013698,2]
[422647598,1779205839000,-500.62055786,0.00013248,2]
[422647620,1779205839000,-531.04142936,0.00013698,2]
[422647592,1779205839000,-500.0,0.00013248,2]
[422647594,1779205839000,-441.19250183,0.00013248,2]
[422647596,1779205839000,-500.0,0.00013248,2]
[422647597,1779205839000,-150.74815113,0.00013248,2]
[422647599,1779205839000,-500.0,0.00013248,2]
[422647595,1779205839000,-150.0,0.00013248,2]
[422647593,1779205839000,-177.01992321,0.00013248,2]
[422647653,1779205839000,-500.0,0.00013698,2]
[422647600,1779205839000,-500.0,0.00013248,2]
[422647601,1779205839000,-354.74373799,0.00013248,2]
[422647603,1779205839000,-166.29,0.00013285,2]
[422647604,1779205839000,-1444.026925,0.00013299,2]
[422647602,1779205839000,-500.0,0.0001326,2]
[422647621,1779205839000,-500.0,0.00013698,2]
[422647605,1779205839000,-166.66,0.00013356,2]
[422647611,1779205839000,-250.0,0.00013612,2]
[422647610,1779205839000,-500.0,0.00013534,2]
[422647607,1779205839000,-1254.97738,0.00013424,2]
[422647609,1779205839000,-2001.5,0.00013523,2]
[422647606,1779205839000,-69952.57513469,0.00013356,2]
[422647612,1779205839000,-200.0,0.00013697,2]
[422647614,1779205839000,-500.0,0.00013698,2]
[422647615,1779205839000,-500.0,0.00013698,2]
[422647613,1779205839000,-500.0,0.00013698,2]
[422647617,1779205839000,-349.78123329,0.00013698,2]
[422647616,1779205839000,-209.51466794,0.00013698,2]
[422647619,1779205839000,-500.0,0.00013698,2]
[422647618,1779205839000,-500.0,0.00013698,2]
[422647608,1779205839000,-456.9,0.00013441,2]
[422647654,1779205839000,-500.0,0.00013698,2]
[422647644,1779205839000,-580.58046492,0.00013698,2]
[422647657,1779205839000,-500.0,0.00013698,2]
[422647687,1779205839000,-500.0,0.00013698,2]
[422647691,1779205839000,-500.0,0.00013698,2]
[422647690,1779205839000,-500.0,0.00013698,2]
[422647692,1779205839000,-500.0,0.00013698,2]
[422647695,1779205839000,-500.0,0.00013698,2]
[422647698,1779205839000,-500.0,0.00013698,2]
[422647697,1779205839000,-500.0,0.00013698,2]
[422647693,1779205839000,-500.0,0.00013698,2]
[422647699,1779205839000,-500.0,0.00013698,2]
[422647696,1779205839000,-500.0,0.00013698,2]
[422647694,1779205839000,-500.0,0.00013698,2]
[422647701,1779205839000,-500.0,0.00013698,2]
[422647700,1779205839000,-500.0,0.00013698,2]
[422647703,1779205839000,-500.0,0.00013698,2]